{"text_format":"1","workbook":"xlsx","n_sheets":3,"sheets":["Zone Summary - Antifreeze","RCF RI Details","Sheet 1"],"not_rendered":{"charts":0,"images":1,"macros":0,"external_links":0,"defined_names":3,"comments":0,"pivot_tables":0},"unopened":[],"bounds":{"document_bytes":16777216,"sheet_cells":100000,"rows_first":2000,"rows_last":500,"rows_between":2000,"halvings":0,"cell_chars":16384,"cell_head_chars":4096},"cells_cut":0,"cells_raw":0,"read":"whole","date_system":"1900"}

{"sheet":"Zone Summary - Antifreeze","index":0,"n_rows":56,"n_cols":12,"rows_kept":56,"cut":false,"hidden":false,"merged":[[1,1,1,7],[4,2,4,7],[2,1,2,7],[3,2,3,5],[5,2,5,5],[28,4,28,7],[6,2,6,5],[52,2,52,5],[52,6,52,7],[44,1,44,7],[45,1,45,7],[46,1,46,7],[47,1,47,7],[48,1,48,7],[49,1,49,7],[10,1,10,7],[7,2,7,7],[8,2,8,5],[54,2,54,5],[54,6,54,7],[55,2,55,6],[51,1,51,7],[50,1,50,7],[53,2,53,5],[53,6,53,7]]}
[]
[null,"Used Antifreeze\nCollector Zone Summary Form"]
[null,"All Blue Sections must be Completed"]
[null,"Collector Name",null,null,null,null,"Claim/Invoice #"]
[null,"Mailing Address"]
[null,"City and Province",null,null,null,null,"Postal Code"]
[null,"Phone ",null,null,null,null,"GST #"]
[null,"Registration #"]
[null,"Name of Processor",null,null,null,null,"Reference #"]
[]
[null,"All Volumes must be reported in Litres (L)"]
[null,"Recycle Docket #","Pick Up Date","RCF Docket #","Zone","Gross \nVolume","Glycol Test %","Adjusted\nVolume"]
[null,null,null,null,null,null,null,{"$f":"F13-IF(G13>24.99%,IF(G13>41.99%,0,((0.42-G13)*F13*4)),F13)","v":0},null,null,{"$f":"F13*(1-G13)","v":0}]
[null,null,null,null,null,null,null,{"$f":"F14-IF(G14>24.99%,IF(G14>41.99%,0,((0.42-G14)*F14*4)),F14)","v":0},null,null,{"$f":"F14*(1-G14)","v":0}]
[null,null,null,null,null,null,null,{"$f":"F15-IF(G15>24.99%,IF(G15>41.99%,0,((0.42-G15)*F15*4)),F15)","v":0},null,null,{"$f":"F15*(1-G15)","v":0}]
[null,null,null,null,null,null,null,{"$f":"F16-IF(G16>24.99%,IF(G16>41.99%,0,((0.42-G16)*F16*4)),F16)","v":0},null,null,{"$f":"F16*(1-G16)","v":0}]
[null,null,null,null,null,null,null,{"$f":"F17-IF(G17>24.99%,IF(G17>41.99%,0,((0.42-G17)*F17*4)),F17)","v":0},null,null,{"$f":"F17*(1-G17)","v":0}]
[null,null,null,null,null,null,null,{"$f":"F18-IF(G18>24.99%,IF(G18>41.99%,0,((0.42-G18)*F18*4)),F18)","v":0},null,null,{"$f":"F18*(1-G18)","v":0}]
[null,null,null,null,null,null,null,{"$f":"F19-IF(G19>24.99%,IF(G19>41.99%,0,((0.42-G19)*F19*4)),F19)","v":0},null,null,{"$f":"F19*(1-G19)","v":0}]
[null,null,null,null,null,null,null,0,null,null,0]
[null,null,null,null,null,null,null,0,null,null,{"$f":"F21*(1-G21)","v":0}]
[null,null,null,null,null,null,null,0,null,null,0]
[null,null,null,null,null,null,null,0,null,null,0]
[null,null,null,null,null,null,null,0,null,null,0]
[null,null,null,null,"Total",{"$f":"SUM(F13:F24)","v":0},null,{"$f":"SUM(H13:H24)","v":0},null,null,{"$f":"SUM(K13:K24)","v":0}]
[]
[null,"RCF RI Premium Details",null,null,null,{"$f":"'RCF RI Details'!$E$30","v":0},null,{"$f":"'RCF RI Details'!$G$30","v":0}]
[]
[null,null,null,null,"Summary"]
[null,null,null,null,"Zone","Gross \nVolume","Average \nWater Test %","Adjusted\nVolume"]
[null,null,null,null,1,{"$f":"SUMIF($E$13:$E$24,$E31,F$13:F$24)","v":0},{"$f":"IF(SUMIF($E$13:$E$24,E31,$F$13:$F$24)=0,\"-\",1-SUMIF($E$13:$E$24,E31,$K$13:$K$24)/SUMIF($E$13:$E$24,E31,$F$13:$F$24))","v":"-"},{"$f":"SUMIF($E$13:$E$24,$E31,H$13:H$24)","v":0},null,null,null,0]
[null,null,null,null,2,0,"-",0]
[null,null,null,null,3,0,{"$f":"IF(SUMIF($E$13:$E$24,E33,$F$13:$F$24)=0,\"-\",1-SUMIF($E$13:$E$24,E33,$K$13:$K$24)/SUMIF($E$13:$E$24,E33,$F$13:$F$24))","v":"-"},0]
[null,null,null,null,4,0,{"$f":"IF(SUMIF($E$13:$E$24,E34,$F$13:$F$24)=0,\"-\",1-SUMIF($E$13:$E$24,E34,$K$13:$K$24)/SUMIF($E$13:$E$24,E34,$F$13:$F$24))","v":"-"},0]
[null,null,null,null,5,0,{"$f":"IF(SUMIF($E$13:$E$24,E35,$F$13:$F$24)=0,\"-\",1-SUMIF($E$13:$E$24,E35,$K$13:$K$24)/SUMIF($E$13:$E$24,E35,$F$13:$F$24))","v":"-"},0]
[null,null,null,null,6,0,{"$f":"IF(SUMIF($E$13:$E$24,E36,$F$13:$F$24)=0,\"-\",1-SUMIF($E$13:$E$24,E36,$K$13:$K$24)/SUMIF($E$13:$E$24,E36,$F$13:$F$24))","v":"-"},0]
[null,null,null,null,7,0,{"$f":"IF(SUMIF($E$13:$E$24,E37,$F$13:$F$24)=0,\"-\",1-SUMIF($E$13:$E$24,E37,$K$13:$K$24)/SUMIF($E$13:$E$24,E37,$F$13:$F$24))","v":"-"},0]
[null,null,null,null,8,0,"-",0]
[null,null,null,null,9,0,"-",0]
[null,null,null,null,"Total",{"$f":"SUM(F31:F39)","v":0},{"$f":"IF(F25=0,\"-\",1-K25/F25)","v":"-"},{"$f":"SUM(H31:H39)","v":0}]
[]
[null,null,null,null,"RI Premium",null,"Sub-Total",{"$f":"'RCF RI Details'!$H$30","v":"-"}]
[]
[]
[null,"Ensure all backup is retained for your records: Recycle Dockets, Receiving Dockets and Glycol Tests."]
[null,"Send a copy of this Collector Zone Summary Form to the Processor."]
[null,"I certify that all of the information contained within this report is correct."]
[null,"I understand the information in this report is subject to Desk Review, Field Review, and Compliance Review."]
[null,"The detailed records including recycle dockets which substantiate the information herein are available upon request."]
[null,"I certify that, to the best of my knowledge, the materials included in this report were generated within British Columbia."]
[null,"I certify that, to the best of my knowledge, only eligible oil and antifreeze materials (as determined by BCUOMA from time to time) have been included in this report. "]
[null,"I further acknowledge that I have read, and agree to be bound by, the terms and conditions in to the Lubricating Oil and Materials Product Management Program Manual for Processors and Collectors."]
[null,null,"Full Name and Title",null,null,null,"Approval and Date"]
[null,"Prepared By"]
[null,"Approved By"]
[null,"BCUOMA1501A-C","BCUOMA GST NO. 89254 4701 RT0001",null,null,null,null,"Jan 1, 2022"]

{"sheet":"RCF RI Details","index":1,"n_rows":30,"n_cols":12,"rows_kept":30,"cut":false,"hidden":false,"merged":[[6,2,6,7],[7,2,7,7],[8,3,8,7],[9,1,9,7],[1,1,1,7],[5,2,5,5],[2,1,2,7],[3,2,3,7],[4,2,4,7]]}
[]
[null,"Used Antifreeze\nRCF Collection Details",null,null,null,null,null,null,null,null,null,0.1]
[null,"All Blue Sections Must Be Completed"]
[null,"Collector Name"]
[null,"Mailing Address"]
[null,"City and Province",null,null,null,null,"Postal Code: "]
[null,"Phone "]
[null,"Registration #"]
[]
[null,"All Volumes must be reported in Litres (L)"]
[null,"RCF Collection \nDocket #","Date of Collection (MM-DD-YY)","RCF Location Name\n(Select from the list)","Gross\nVolume","% of Product \nConsumer Drop Off","Adjusted\nVolume","RI Premium"]
[null,null,null,null,null,{"$f":"IFERROR(VLOOKUP(D12,'Sheet 1'!$B$3:$D$299,3,FALSE),\"\")","v":""},{"$f":"IF(E12=0,\"-\",E12*F12)","v":"-"},{"$f":"IF(OR(ISBLANK(E12),ISBLANK(F12)), \"\", E12*F12*$L$2)","v":""}]
[null,null,null,null,null,{"$f":"IFERROR(VLOOKUP(D13,'Sheet 1'!$B$3:$D$299,3,FALSE),\"\")","v":""},{"$f":"IF(E13=0,\"-\",E13*F13)","v":"-"},{"$f":"IF(OR(ISBLANK(E13),ISBLANK(F13)), \"\", E13*F13*$L$2)","v":""},null,null,{"$f":"IF(OR(ISBLANK(A2),ISBLANK(B2)), \"\", E12*F12)","v":""}]
[null,null,null,null,null,{"$f":"IFERROR(VLOOKUP(D14,'Sheet 1'!$B$3:$D$299,3,FALSE),\"\")","v":""},{"$f":"IF(E14=0,\"-\",E14*F14)","v":"-"},""]
[null,null,null,null,null,{"$f":"IFERROR(VLOOKUP(D15,'Sheet 1'!$B$3:$D$299,3,FALSE),\"\")","v":""},"-",""]
[null,null,null,null,null,{"$f":"IFERROR(VLOOKUP(D16,'Sheet 1'!$B$3:$D$299,3,FALSE),\"\")","v":""},"-",""]
[null,null,null,null,null,{"$f":"IFERROR(VLOOKUP(D17,'Sheet 1'!$B$3:$D$299,3,FALSE),\"\")","v":""},"-",""]
[null,null,null,null,null,{"$f":"IFERROR(VLOOKUP(D18,'Sheet 1'!$B$3:$D$299,3,FALSE),\"\")","v":""},"-",""]
[null,null,null,null,null,{"$f":"IFERROR(VLOOKUP(D19,'Sheet 1'!$B$3:$D$299,3,FALSE),\"\")","v":""},"-",""]
[null,null,null,null,null,{"$f":"IFERROR(VLOOKUP(D20,'Sheet 1'!$B$3:$D$299,3,FALSE),\"\")","v":""},"-",""]
[null,null,null,null,null,{"$f":"IFERROR(VLOOKUP(D21,'Sheet 1'!$B$3:$D$299,3,FALSE),\"\")","v":""},"-",""]
[null,null,null,null,null,{"$f":"IFERROR(VLOOKUP(D22,'Sheet 1'!$B$3:$D$299,3,FALSE),\"\")","v":""},"-",""]
[null,null,null,null,null,{"$f":"IFERROR(VLOOKUP(D23,'Sheet 1'!$B$3:$D$299,3,FALSE),\"\")","v":""},"-",""]
[null,null,null,null,null,{"$f":"IFERROR(VLOOKUP(D24,'Sheet 1'!$B$3:$D$299,3,FALSE),\"\")","v":""},"-",""]
[null,null,null,null,null,{"$f":"IFERROR(VLOOKUP(D25,'Sheet 1'!$B$3:$D$299,3,FALSE),\"\")","v":""},"-",""]
[null,null,null,null,null,{"$f":"IFERROR(VLOOKUP(D26,'Sheet 1'!$B$3:$D$299,3,FALSE),\"\")","v":""},"-",""]
[null,null,null,null,null,{"$f":"IFERROR(VLOOKUP(D27,'Sheet 1'!$B$3:$D$299,3,FALSE),\"\")","v":""},"-",""]
[null,null,null,null,null,{"$f":"IFERROR(VLOOKUP(D28,'Sheet 1'!$B$3:$D$299,3,FALSE),\"\")","v":""},"-",""]
[null,null,null,null,null,{"$f":"IFERROR(VLOOKUP(D29,'Sheet 1'!$B$3:$D$299,3,FALSE),\"\")","v":""},"-",""]
[null,null,null,null,{"$f":"SUM(E12:E29)","v":0},null,{"$f":"SUM(G12:G29)","v":0},{"$f":"IF(SUM(H12:H29)=0,\"-\",SUM(H12:H29))","v":"-"}]

{"sheet":"Sheet 1","index":2,"n_rows":299,"n_cols":11,"rows_kept":299,"cut":false,"hidden":false,"merged":[]}
[]
[null,"Business Name","Type","Rate"]
[null,"150 M & S Tire & Service Ltd.","Auto Repair/Car Dealer",{"$f":"VLOOKUP(C3,$J$7:$K$14,2,FALSE)","v":0.5}]
[null,"7 Mile Landfill and Recycling Center (RDMW)","Recycling Center",{"$f":"VLOOKUP(C4,$J$7:$K$14,2,FALSE)","v":1}]
[null,"70 Mile House Eco-Depot (TNRD)","Recycling Center",{"$f":"VLOOKUP(C5,$J$7:$K$14,2,FALSE)","v":1}]
[null,"Ace Automotive","Auto Repair/Car Dealer",{"$f":"VLOOKUP(C6,$J$7:$K$14,2,FALSE)","v":0.5}]
[null,"Alberni Chrysler Ltd.","Auto Repair/Car Dealer",{"$f":"VLOOKUP(C7,$J$7:$K$14,2,FALSE)","v":0.5},null,null,null,null,null,"Type","Rate"]
[null,"Alberni District Co-operative Association","Retailer",{"$f":"VLOOKUP(C8,$J$7:$K$14,2,FALSE)","v":0.75},null,null,null,null,null,"Recycling Center",1]
[null,"Alberni Valley Landfill (ACRD)","Landfill/Transfer Station",{"$f":"VLOOKUP(C9,$J$7:$K$14,2,FALSE)","v":1},null,null,null,null,null,"Bulk Dealer",1]
[null,"Aldergrove Return-It Depot","Recycling Center",{"$f":"VLOOKUP(C10,$J$7:$K$14,2,FALSE)","v":1},null,null,null,null,null,"Landfill/Transfer Station",1]
[null,"Arjun Esso","Auto Repair/Car Dealer",{"$f":"VLOOKUP(C11,$J$7:$K$14,2,FALSE)","v":0.5},null,null,null,null,null,"Multi-material Depot",1]
[null,"A-Star Automotive Recycling Ltd.","Auto Repair/Car Dealer",{"$f":"VLOOKUP(C12,$J$7:$K$14,2,FALSE)","v":0.5},null,null,null,null,null,"Retailer",0.75]
[null,"Barry Beecroft Fuel Distributors list","Bulk Dealer",{"$f":"VLOOKUP(C13,$J$7:$K$14,2,FALSE)","v":1},null,null,null,null,null,"Auto Repair/Car Dealer",0.5]
[null,"Beddis Road Garage","Auto Repair/Car Dealer",{"$f":"VLOOKUP(C14,$J$7:$K$14,2,FALSE)","v":0.5},null,null,null,null,null,"Lube Shop",0.2]
[null,"Bings Creek Recycling Centre (CWRD)","Recycling Center",{"$f":"VLOOKUP(C15,$J$7:$K$14,2,FALSE)","v":1}]
[null,"Blue River Eco-Depot (TNRD)","Recycling Center",{"$f":"VLOOKUP(C16,$J$7:$K$14,2,FALSE)","v":1}]
[null,"Bowen Island Municipality Recycling Depot","Recycling Center",{"$f":"VLOOKUP(C17,$J$7:$K$14,2,FALSE)","v":1}]
[null,"Bowser Automotive Care","Auto Repair/Car Dealer",{"$f":"VLOOKUP(C18,$J$7:$K$14,2,FALSE)","v":0.5}]
[null,"Brentwood Auto & Metal Recyclers","Auto Repair/Car Dealer",{"$f":"VLOOKUP(C19,$J$7:$K$14,2,FALSE)","v":0.5}]
[null,"Bridgeview Marine Ltd.","Retailer",{"$f":"VLOOKUP(C20,$J$7:$K$14,2,FALSE)","v":0.75}]
[null,"Burns Lake Automotive Supply Ltd. (Burns Lake)","Retailer",{"$f":"VLOOKUP(C21,$J$7:$K$14,2,FALSE)","v":0.75}]
[null,"C M Klassen Holdings Inc.","Bulk Dealer",{"$f":"VLOOKUP(C22,$J$7:$K$14,2,FALSE)","v":1}]
[null,"Campbell Mountain Landfill (RDOS)","Landfill/Transfer Station",{"$f":"VLOOKUP(C23,$J$7:$K$14,2,FALSE)","v":1}]
[null,"Campbell River Waste Management Centre (CXRD)","Multi-material Depot",{"$f":"VLOOKUP(C24,$J$7:$K$14,2,FALSE)","v":1}]
[null,"Canadian Tire #360 (Prince George)","Retailer",{"$f":"VLOOKUP(C25,$J$7:$K$14,2,FALSE)","v":0.75}]
[null,"Canadian Tire #363  (Fort St. John)","Retailer",{"$f":"VLOOKUP(C26,$J$7:$K$14,2,FALSE)","v":0.75}]
[null,"Canadian Tire #466  (Duncan)","Retailer",{"$f":"VLOOKUP(C27,$J$7:$K$14,2,FALSE)","v":0.75}]
[null,"Canadian Tire #488  (Port Alberni)","Retailer",{"$f":"VLOOKUP(C28,$J$7:$K$14,2,FALSE)","v":0.75}]
[null,"Canadian Tire 631 (Smithers)","Retailer",{"$f":"VLOOKUP(C29,$J$7:$K$14,2,FALSE)","v":0.75}]
[null,"Caron Horsefly Service Ltd (Race Trac Gas)","Auto Repair/Car Dealer",{"$f":"VLOOKUP(C30,$J$7:$K$14,2,FALSE)","v":0.5}]
[null,"Castle Fuels (2008) Inc. (100 Mile House)","Bulk Dealer",{"$f":"VLOOKUP(C31,$J$7:$K$14,2,FALSE)","v":1}]
[null,"Castle Fuels (2008) Inc. (Cranbrook)","Bulk Dealer",{"$f":"VLOOKUP(C32,$J$7:$K$14,2,FALSE)","v":1}]
[null,"Castle Fuels (2008) Inc. (Golden)","Bulk Dealer",{"$f":"VLOOKUP(C33,$J$7:$K$14,2,FALSE)","v":1}]
[null,"Castle Fuels (2008) Inc. (Invermere)","Bulk Dealer",{"$f":"VLOOKUP(C34,$J$7:$K$14,2,FALSE)","v":1}]
[null,"Castle Fuels (2008) Inc. (Kamloops)","Bulk Dealer",{"$f":"VLOOKUP(C35,$J$7:$K$14,2,FALSE)","v":1}]
[null,"Castle Fuels (2008) Inc. (Salmon Arm)","Bulk Dealer",{"$f":"VLOOKUP(C36,$J$7:$K$14,2,FALSE)","v":1}]
[null,"Chapman Motors Ltd.","Auto Repair/Car Dealer",{"$f":"VLOOKUP(C37,$J$7:$K$14,2,FALSE)","v":0.5}]
[null,"Chap's Auto Body","Auto Repair/Car Dealer",{"$f":"VLOOKUP(C38,$J$7:$K$14,2,FALSE)","v":0.5}]
[null,"Chetwynd Recycling & Bottle Depot Ltd.","Recycling Center",{"$f":"VLOOKUP(C39,$J$7:$K$14,2,FALSE)","v":1}]
[null,"Chilliwack Bottle Depot","Multi-material Depot",{"$f":"VLOOKUP(C40,$J$7:$K$14,2,FALSE)","v":1}]
[null,"Chilliwack Ford Sales (1981) Ltd.","Auto Repair/Car Dealer",{"$f":"VLOOKUP(C41,$J$7:$K$14,2,FALSE)","v":0.5}]
[null,"Christina Lake Mechanical Ltd.","Auto Repair/Car Dealer",{"$f":"VLOOKUP(C42,$J$7:$K$14,2,FALSE)","v":0.5}]
[null,"Chuck's Auto Supply","Retailer",{"$f":"VLOOKUP(C43,$J$7:$K$14,2,FALSE)","v":0.75}]
[null,"City of Burnaby Eco-Center","Recycling Center",{"$f":"VLOOKUP(C44,$J$7:$K$14,2,FALSE)","v":1}]
[null,"Clair Downey Service","Auto Repair/Car Dealer",{"$f":"VLOOKUP(C45,$J$7:$K$14,2,FALSE)","v":0.5}]
[null,"Clearwater Eco-Depot (TNRD)","Recycling Center",{"$f":"VLOOKUP(C46,$J$7:$K$14,2,FALSE)","v":1}]
[null,"Clinton Eco-Depot (TNRD)","Recycling Center",{"$f":"VLOOKUP(C47,$J$7:$K$14,2,FALSE)","v":1}]
[null,"Columbia Diesel Ltd.","Bulk Dealer",{"$f":"VLOOKUP(C48,$J$7:$K$14,2,FALSE)","v":1}]
[null,"Columbia Fuels (Sechelt)","Bulk Dealer",{"$f":"VLOOKUP(C49,$J$7:$K$14,2,FALSE)","v":1}]
[null,"Columbia Fuels (Ucluelet) / Eagle Marine","Bulk Dealer",{"$f":"VLOOKUP(C50,$J$7:$K$14,2,FALSE)","v":1}]
[null,"Comfort Welding Ltd.","Auto Repair/Car Dealer",{"$f":"VLOOKUP(C51,$J$7:$K$14,2,FALSE)","v":0.5}]
[null,"Comox Valley Harbour Authority","Recycling Center",{"$f":"VLOOKUP(C52,$J$7:$K$14,2,FALSE)","v":1}]
[null,"Comox Valley Waste Management Centre - Cumberland (CXRD)","Multi-material Depot",{"$f":"VLOOKUP(C53,$J$7:$K$14,2,FALSE)","v":1}]
[null,"Cortes Island Waste Management Center (CXRD)","Multi-material Depot",{"$f":"VLOOKUP(C54,$J$7:$K$14,2,FALSE)","v":1}]
[null,"Courtenay Kia","Auto Repair/Car Dealer",{"$f":"VLOOKUP(C55,$J$7:$K$14,2,FALSE)","v":0.5}]
[null,"Cranbrook Depot (RDEK)","Multi-material Depot",{"$f":"VLOOKUP(C56,$J$7:$K$14,2,FALSE)","v":1}]
[null,"Crofton Auto Service","Auto Repair/Car Dealer",{"$f":"VLOOKUP(C57,$J$7:$K$14,2,FALSE)","v":0.5}]
[null,"Cummings Road Regional Transfer Station","Landfill/Transfer Station",{"$f":"VLOOKUP(C58,$J$7:$K$14,2,FALSE)","v":1}]
[null,"Cunningham's Enterprise Ltd.","Auto Repair/Car Dealer",{"$f":"VLOOKUP(C59,$J$7:$K$14,2,FALSE)","v":0.5}]
[null,"D.L. Recycling","Recycling Center",{"$f":"VLOOKUP(C60,$J$7:$K$14,2,FALSE)","v":1}]
[null,"Dalex Auto Services","Auto Repair/Car Dealer",{"$f":"VLOOKUP(C61,$J$7:$K$14,2,FALSE)","v":0.5}]
[null,"Dave Landon Motors Ltd.","Auto Repair/Car Dealer",{"$f":"VLOOKUP(C62,$J$7:$K$14,2,FALSE)","v":0.5}]
[null,"Dawn's Service","Auto Repair/Car Dealer",{"$f":"VLOOKUP(C63,$J$7:$K$14,2,FALSE)","v":0.5}]
[null,"Day Auto Electric","Auto Repair/Car Dealer",{"$f":"VLOOKUP(C64,$J$7:$K$14,2,FALSE)","v":0.5}]
[null,"Dearborn Motors Ltd.","Auto Repair/Car Dealer",{"$f":"VLOOKUP(C65,$J$7:$K$14,2,FALSE)","v":0.5}]
[null,"Denham Ford BC Ltd. (2018)","Auto Repair/Car Dealer",{"$f":"VLOOKUP(C66,$J$7:$K$14,2,FALSE)","v":0.5}]
[null,"Denman Island Recycling Depot (CXRD)","Recycling Center",{"$f":"VLOOKUP(C67,$J$7:$K$14,2,FALSE)","v":1}]
[null,"Derick's Automotive Services","Auto Repair/Car Dealer",{"$f":"VLOOKUP(C68,$J$7:$K$14,2,FALSE)","v":0.5}]
[null,"Desert Cardlock Fuel Services Ltd (Kelowna)","Bulk Dealer",{"$f":"VLOOKUP(C69,$J$7:$K$14,2,FALSE)","v":1}]
[null,"Desert Cardlock Fuel Services Ltd (Williams Lake)","Bulk Dealer",{"$f":"VLOOKUP(C70,$J$7:$K$14,2,FALSE)","v":1}]
[null,"Discovery Harbour Authority","Recycling Center",{"$f":"VLOOKUP(C71,$J$7:$K$14,2,FALSE)","v":1}]
[null,"District of Summerland Landfill","Landfill/Transfer Station",{"$f":"VLOOKUP(C72,$J$7:$K$14,2,FALSE)","v":1}]
[null,"District of Tumbler Ridge","Landfill/Transfer Station",{"$f":"VLOOKUP(C73,$J$7:$K$14,2,FALSE)","v":1}]
[null,"E.J. Klassen GM Motorcade","Auto Repair/Car Dealer",{"$f":"VLOOKUP(C74,$J$7:$K$14,2,FALSE)","v":0.5}]
[null,"Elkford Transfer Station (RDEK)","Landfill/Transfer Station",{"$f":"VLOOKUP(C75,$J$7:$K$14,2,FALSE)","v":1}]
[null,"Entire Automotive Services Ltd.","Auto Repair/Car Dealer",{"$f":"VLOOKUP(C76,$J$7:$K$14,2,FALSE)","v":0.5}]
[null,"Ernie's Used Auto Parts","Auto Repair/Car Dealer",{"$f":"VLOOKUP(C77,$J$7:$K$14,2,FALSE)","v":0.5}]
[null,"EZ Lube Auto Ltd. (Langford - Jacklin Rd)","Lube Shop",{"$f":"VLOOKUP(C78,$J$7:$K$14,2,FALSE)","v":0.2}]
[null,"False Creek Fuels","Bulk Dealer",{"$f":"VLOOKUP(C79,$J$7:$K$14,2,FALSE)","v":1}]
[null,"False Creek Harbour Authority","Recycling Center",{"$f":"VLOOKUP(C80,$J$7:$K$14,2,FALSE)","v":1}]
[null,"Fisher Road Recycling","Recycling Center",{"$f":"VLOOKUP(C81,$J$7:$K$14,2,FALSE)","v":1}]
[null,"Fleetwest Enterprises Ltd.","Retailer",{"$f":"VLOOKUP(C82,$J$7:$K$14,2,FALSE)","v":0.75}]
[null,"Foothills Boulevard Regional Landfill (FFGRD)","Landfill/Transfer Station",{"$f":"VLOOKUP(C83,$J$7:$K$14,2,FALSE)","v":1}]
[null,"Fort St John Co-op Association (Fort St John - 100 Ave)","Bulk Dealer",{"$f":"VLOOKUP(C84,$J$7:$K$14,2,FALSE)","v":1}]
[null,"Fort St John Co-op Association (Fort St John - 91 Ave)","Bulk Dealer",{"$f":"VLOOKUP(C85,$J$7:$K$14,2,FALSE)","v":1}]
[null,"Fort St John Co-op Association (Prespatou)","Bulk Dealer",{"$f":"VLOOKUP(C86,$J$7:$K$14,2,FALSE)","v":1}]
[null,"Four Rivers Co-op (Houston)","Bulk Dealer",{"$f":"VLOOKUP(C87,$J$7:$K$14,2,FALSE)","v":1}]
[null,"Four Rivers Co-op (Prince George)","Bulk Dealer",{"$f":"VLOOKUP(C88,$J$7:$K$14,2,FALSE)","v":1}]
[null,"Four Rivers Co-op (Quesnel)","Bulk Dealer",{"$f":"VLOOKUP(C89,$J$7:$K$14,2,FALSE)","v":1}]
[null,"Four Rivers Co-op (Terrace Cardlock)","Bulk Dealer",{"$f":"VLOOKUP(C90,$J$7:$K$14,2,FALSE)","v":1}]
[null,"Four Rivers Co-op (Vanderhoof)","Bulk Dealer",{"$f":"VLOOKUP(C91,$J$7:$K$14,2,FALSE)","v":1}]
[null,"Frank's Auto Repair","Auto Repair/Car Dealer",{"$f":"VLOOKUP(C92,$J$7:$K$14,2,FALSE)","v":0.5}]
[null,"Fraser Lake Automotive & Recycling","Auto Repair/Car Dealer",{"$f":"VLOOKUP(C93,$J$7:$K$14,2,FALSE)","v":0.5}]
[null,"Fraser Lake AutoSense","Retailer",{"$f":"VLOOKUP(C94,$J$7:$K$14,2,FALSE)","v":0.75}]
[null,"Fraser Valley Tireland","Retailer",{"$f":"VLOOKUP(C95,$J$7:$K$14,2,FALSE)","v":0.75}]
[null,"Furney Distributing Limited","Bulk Dealer",{"$f":"VLOOKUP(C96,$J$7:$K$14,2,FALSE)","v":1}]
[null,"G & R Auto","Auto Repair/Car Dealer",{"$f":"VLOOKUP(C97,$J$7:$K$14,2,FALSE)","v":0.5}]
[null,"Gabriola Island Recycling Organization (GIRO)","Recycling Center",{"$f":"VLOOKUP(C98,$J$7:$K$14,2,FALSE)","v":1}]
[null,"Gardner Chevrolet Oldsmobile Pontiac Buick","Auto Repair/Car Dealer",{"$f":"VLOOKUP(C99,$J$7:$K$14,2,FALSE)","v":0.5}]
[null,"Gartside Marine Engines Ltd","Retailer",{"$f":"VLOOKUP(C100,$J$7:$K$14,2,FALSE)","v":0.75}]
[null,"Gary Young Agencies","Bulk Dealer",{"$f":"VLOOKUP(C101,$J$7:$K$14,2,FALSE)","v":1}]
[null,"Geraco Industrial Supplies","Retailer",{"$f":"VLOOKUP(C102,$J$7:$K$14,2,FALSE)","v":0.75}]
[null,"GFL Environmental Depot (Cumberland)","Landfill/Transfer Station",{"$f":"VLOOKUP(C103,$J$7:$K$14,2,FALSE)","v":1}]
[null,"GFL Environmental Depot (Abbotsford)","Multi-material Depot",{"$f":"VLOOKUP(C104,$J$7:$K$14,2,FALSE)","v":1}]
[null,"GFL Environmental Depot (Chemainus)","Multi-material Depot",{"$f":"VLOOKUP(C105,$J$7:$K$14,2,FALSE)","v":1}]
[null,"GFL Environmental Depot (Duncan)","Multi-material Depot",{"$f":"VLOOKUP(C106,$J$7:$K$14,2,FALSE)","v":1}]
[null,"GFL Environmental Depot (Grand Forks)","Recycling Center",{"$f":"VLOOKUP(C107,$J$7:$K$14,2,FALSE)","v":1}]
[null,"GFL Environmental Depot (Nanaimo)","Multi-material Depot",{"$f":"VLOOKUP(C108,$J$7:$K$14,2,FALSE)","v":1}]
[null,"GFL Environmental Depot (Victoria)","Multi-material Depot",{"$f":"VLOOKUP(C109,$J$7:$K$14,2,FALSE)","v":1}]
[null,"GFL Environmental Liquids West","Bulk Dealer",{"$f":"VLOOKUP(C110,$J$7:$K$14,2,FALSE)","v":1}]
[null,"Glacier Toyota","Auto Repair/Car Dealer",{"$f":"VLOOKUP(C111,$J$7:$K$14,2,FALSE)","v":0.5}]
[null,"Glenn's Import & Domestic Auto Service","Auto Repair/Car Dealer",{"$f":"VLOOKUP(C112,$J$7:$K$14,2,FALSE)","v":0.5}]
[null,"Gold Automotive Ltd.","Auto Repair/Car Dealer",{"$f":"VLOOKUP(C113,$J$7:$K$14,2,FALSE)","v":0.5}]
[null,"Gold Bridge Transfer Station (SLRD)","Landfill/Transfer Station",{"$f":"VLOOKUP(C114,$J$7:$K$14,2,FALSE)","v":1}]
[null,"Gold River Waste Management Center (CXRD)","Multi-material Depot",{"$f":"VLOOKUP(C115,$J$7:$K$14,2,FALSE)","v":1}]
[null,"Gold Trail Recycling Ltd","Recycling Center",{"$f":"VLOOKUP(C116,$J$7:$K$14,2,FALSE)","v":1}]
[null,"Golden Landfill (CSRD)","Landfill/Transfer Station",{"$f":"VLOOKUP(C117,$J$7:$K$14,2,FALSE)","v":1}]
[null,"Great Canadian Oil Change (Chilliwack - Alexander Ave)","Lube Shop",{"$f":"VLOOKUP(C118,$J$7:$K$14,2,FALSE)","v":0.2}]
[null,"Great Canadian Oil Change (Chilliwack - Vedder Rd)","Lube Shop",{"$f":"VLOOKUP(C119,$J$7:$K$14,2,FALSE)","v":0.2}]
[null,"Great Canadian Oil Change (Courtenay)","Lube Shop",{"$f":"VLOOKUP(C120,$J$7:$K$14,2,FALSE)","v":0.2}]
[null,"Great Canadian Oil Change (Cranbrook)","Lube Shop",{"$f":"VLOOKUP(C121,$J$7:$K$14,2,FALSE)","v":0.2}]
[null,"Great Canadian Oil Change (Dawson Creek)","Lube Shop",{"$f":"VLOOKUP(C122,$J$7:$K$14,2,FALSE)","v":0.2}]
[null,"Great Canadian Oil Change (Duncan - June 2016)","Lube Shop",{"$f":"VLOOKUP(C123,$J$7:$K$14,2,FALSE)","v":0.2}]
[null,"Great Canadian Oil Change (Kelowna - Harvey Ave)","Lube Shop",{"$f":"VLOOKUP(C124,$J$7:$K$14,2,FALSE)","v":0.2}]
[null,"Great Canadian Oil Change (Kelowna - Richter St)","Lube Shop",{"$f":"VLOOKUP(C125,$J$7:$K$14,2,FALSE)","v":0.2}]
[null,"Great Canadian Oil Change (Lake Country)","Lube Shop",{"$f":"VLOOKUP(C126,$J$7:$K$14,2,FALSE)","v":0.2}]
[null,"Great Canadian Oil Change (Langford - Langford Pkwy)","Lube Shop",{"$f":"VLOOKUP(C127,$J$7:$K$14,2,FALSE)","v":0.2}]
[null,"Great Canadian Oil Change (Langford - Millstream)","Lube Shop",{"$f":"VLOOKUP(C128,$J$7:$K$14,2,FALSE)","v":0.2}]
[null,"Great Canadian Oil Change (Nanaimo - Island Hwy)","Lube Shop",{"$f":"VLOOKUP(C129,$J$7:$K$14,2,FALSE)","v":0.2}]
[null,"Great Canadian Oil Change (Nanaimo - Metral Dr)","Lube Shop",{"$f":"VLOOKUP(C130,$J$7:$K$14,2,FALSE)","v":0.2}]
[null,"Great Canadian Oil Change (Parksville)","Lube Shop",{"$f":"VLOOKUP(C131,$J$7:$K$14,2,FALSE)","v":0.2}]
[null,"Great Canadian Oil Change (Penticton)","Lube Shop",{"$f":"VLOOKUP(C132,$J$7:$K$14,2,FALSE)","v":0.2}]
[null,"Great Canadian Oil Change (Prince George - 15 Avenue)","Lube Shop",{"$f":"VLOOKUP(C133,$J$7:$K$14,2,FALSE)","v":0.2}]
[null,"Great Canadian Oil Change (Prince George - Austin Rd)","Lube Shop",{"$f":"VLOOKUP(C134,$J$7:$K$14,2,FALSE)","v":0.2}]
[null,"Great Canadian Oil Change (Squamish)","Lube Shop",{"$f":"VLOOKUP(C135,$J$7:$K$14,2,FALSE)","v":0.2}]
[null,"Great Canadian Oil Change (Surrey - King George Blvd)","Lube Shop",{"$f":"VLOOKUP(C136,$J$7:$K$14,2,FALSE)","v":0.2}]
[null,"Great Canadian Oil Change (Vernon - 27th Street)","Lube Shop",{"$f":"VLOOKUP(C137,$J$7:$K$14,2,FALSE)","v":0.2}]
[null,"Great Canadian Oil Change (Vernon - Anderson Way)","Lube Shop",{"$f":"VLOOKUP(C138,$J$7:$K$14,2,FALSE)","v":0.2}]
[null,"Great Canadian Oil Change (Victoria - Douglas St - Apr 2019)","Lube Shop",{"$f":"VLOOKUP(C139,$J$7:$K$14,2,FALSE)","v":0.2}]
[null,"Great Canadian Oil Change (West Kelowna)","Lube Shop",{"$f":"VLOOKUP(C140,$J$7:$K$14,2,FALSE)","v":0.2}]
[null,"Greendale Motors Ltd","Auto Repair/Car Dealer",{"$f":"VLOOKUP(C141,$J$7:$K$14,2,FALSE)","v":0.5}]
[null,"Greenwood Auto Centre Ltd.","Auto Repair/Car Dealer",{"$f":"VLOOKUP(C142,$J$7:$K$14,2,FALSE)","v":0.5}]
[null,"Greenwood Saw To Truck Repairs","Auto Repair/Car Dealer",{"$f":"VLOOKUP(C143,$J$7:$K$14,2,FALSE)","v":0.5}]
[null,"Gurton's Garage Ltd.","Auto Repair/Car Dealer",{"$f":"VLOOKUP(C144,$J$7:$K$14,2,FALSE)","v":0.5}]
[null,"Hallmark Ford Sales Ltd.","Auto Repair/Car Dealer",{"$f":"VLOOKUP(C145,$J$7:$K$14,2,FALSE)","v":0.5}]
[null,"Harris Mazda","Auto Repair/Car Dealer",{"$f":"VLOOKUP(C146,$J$7:$K$14,2,FALSE)","v":0.5}]
[null,"Hartland Landfill (CRD)","Recycling Center",{"$f":"VLOOKUP(C147,$J$7:$K$14,2,FALSE)","v":1}]
[null,"Heffley Creek Eco-Depot (TNRD)","Recycling Center",{"$f":"VLOOKUP(C148,$J$7:$K$14,2,FALSE)","v":1}]
[null,"Heiltsuk Environmental Services","Recycling Center",{"$f":"VLOOKUP(C149,$J$7:$K$14,2,FALSE)","v":1}]
[null,"Highway 4 Auto Salvage","Retailer",{"$f":"VLOOKUP(C150,$J$7:$K$14,2,FALSE)","v":0.75}]
[null,"Hilts Automotive","Auto Repair/Car Dealer",{"$f":"VLOOKUP(C151,$J$7:$K$14,2,FALSE)","v":0.5}]
[null,"Hudson's Hope Transfer Station (PRRD)","Landfill/Transfer Station",{"$f":"VLOOKUP(C152,$J$7:$K$14,2,FALSE)","v":1}]
[null,"Integra Tire Auto Center","Auto Repair/Car Dealer",{"$f":"VLOOKUP(C153,$J$7:$K$14,2,FALSE)","v":0.5}]
[null,"Interior Freight & Bottle Depot Ltd.","Recycling Center",{"$f":"VLOOKUP(C154,$J$7:$K$14,2,FALSE)","v":1}]
[null,"Ironwood Auto Technicians","Auto Repair/Car Dealer",{"$f":"VLOOKUP(C155,$J$7:$K$14,2,FALSE)","v":0.5}]
[null,"Island Hose & Hydraulic (1994) Ltd.","Retailer",{"$f":"VLOOKUP(C156,$J$7:$K$14,2,FALSE)","v":0.75}]
[null,"Island Solid Waste Management - Port Clements","Landfill/Transfer Station",{"$f":"VLOOKUP(C157,$J$7:$K$14,2,FALSE)","v":1}]
[null,"Island Solid Waste Management - Skidegate","Landfill/Transfer Station",{"$f":"VLOOKUP(C158,$J$7:$K$14,2,FALSE)","v":1}]
[null,"Island Tractor & Supply","Retailer",{"$f":"VLOOKUP(C159,$J$7:$K$14,2,FALSE)","v":0.75}]
[null,"Jacobson Ford Sales Ltd (Revelstoke)","Auto Repair/Car Dealer",{"$f":"VLOOKUP(C160,$J$7:$K$14,2,FALSE)","v":0.5}]
[null,"Jacobson Ford Sales Ltd (Salmon Arm)","Auto Repair/Car Dealer",{"$f":"VLOOKUP(C161,$J$7:$K$14,2,FALSE)","v":0.5}]
[null,"Jepson Petroleum Ltd. (Mackenzie)","Bulk Dealer",{"$f":"VLOOKUP(C162,$J$7:$K$14,2,FALSE)","v":1}]
[null,"Jepson Petroleum Ltd. (Prince George)","Bulk Dealer",{"$f":"VLOOKUP(C163,$J$7:$K$14,2,FALSE)","v":1}]
[null,"Jepson Petroleum Ltd. (Quesnel)","Bulk Dealer",{"$f":"VLOOKUP(C164,$J$7:$K$14,2,FALSE)","v":1}]
[null,"Jepson Petroleum Ltd. (Williams Lake)","Bulk Dealer",{"$f":"VLOOKUP(C165,$J$7:$K$14,2,FALSE)","v":1}]
[null,"Jiffy Lube #1015 (Penticton)","Lube Shop",{"$f":"VLOOKUP(C166,$J$7:$K$14,2,FALSE)","v":0.2}]
[null,"Jiffy Lube #1043 (West Kelowna)","Lube Shop",{"$f":"VLOOKUP(C167,$J$7:$K$14,2,FALSE)","v":0.2}]
[null,"Jiffy Lube #1064 (Kelowna - Sexsmith Rd)","Lube Shop",{"$f":"VLOOKUP(C168,$J$7:$K$14,2,FALSE)","v":0.2}]
[null,"Jiffy Lube #1075 (Victoria)","Lube Shop",{"$f":"VLOOKUP(C169,$J$7:$K$14,2,FALSE)","v":0.2}]
[null,"Jiffy Lube #1078  (Salmon Arm)","Lube Shop",{"$f":"VLOOKUP(C170,$J$7:$K$14,2,FALSE)","v":0.2}]
[null,"Jiffy Lube #1080 (Kelowna - Harvey Ave)","Lube Shop",{"$f":"VLOOKUP(C171,$J$7:$K$14,2,FALSE)","v":0.2}]
[null,"Jiffy Lube #1088 (Richmond)","Lube Shop",{"$f":"VLOOKUP(C172,$J$7:$K$14,2,FALSE)","v":0.2}]
[null,"Jiffy Lube #1090 (Chilliwack)","Lube Shop",{"$f":"VLOOKUP(C173,$J$7:$K$14,2,FALSE)","v":0.2}]
[null,"JNR Auto Services","Auto Repair/Car Dealer",{"$f":"VLOOKUP(C174,$J$7:$K$14,2,FALSE)","v":0.5}]
[null,"JOMA Environmental Ltd","Multi-material Depot",{"$f":"VLOOKUP(C175,$J$7:$K$14,2,FALSE)","v":1}]
[null,"Kal Tire (Kitimat)","Auto Repair/Car Dealer",{"$f":"VLOOKUP(C176,$J$7:$K$14,2,FALSE)","v":0.5}]
[null,"Kal Tire (Prince Rupert)","Auto Repair/Car Dealer",{"$f":"VLOOKUP(C177,$J$7:$K$14,2,FALSE)","v":0.5}]
[null,"Kenmac Parts","Retailer",{"$f":"VLOOKUP(C178,$J$7:$K$14,2,FALSE)","v":0.75}]
[null,"Keremeos Transfer Station (RDOS)","Landfill/Transfer Station",{"$f":"VLOOKUP(C179,$J$7:$K$14,2,FALSE)","v":1}]
[null,"Kitasoo Band Council","Recycling Center",{"$f":"VLOOKUP(C180,$J$7:$K$14,2,FALSE)","v":1}]
[null,"Lake City Ford Sales Ltd.","Auto Repair/Car Dealer",{"$f":"VLOOKUP(C181,$J$7:$K$14,2,FALSE)","v":0.5}]
[null,"Laketime Services","Auto Repair/Car Dealer",{"$f":"VLOOKUP(C182,$J$7:$K$14,2,FALSE)","v":0.5}]
[null,"Lasqueti Island Recycling Depot (qRD)","Recycling Center",{"$f":"VLOOKUP(C183,$J$7:$K$14,2,FALSE)","v":1}]
[null,"Likely Landfill (CBRD)","Recycling Center",{"$f":"VLOOKUP(C184,$J$7:$K$14,2,FALSE)","v":1}]
[null,"Lillooet Landfill (SLRD)","Landfill/Transfer Station",{"$f":"VLOOKUP(C185,$J$7:$K$14,2,FALSE)","v":1}]
[null,"Lil'wat Nation Public Works Yard","Landfill/Transfer Station",{"$f":"VLOOKUP(C186,$J$7:$K$14,2,FALSE)","v":1}]
[null,"Local Automotive Co. Ltd.","Auto Repair/Car Dealer",{"$f":"VLOOKUP(C187,$J$7:$K$14,2,FALSE)","v":0.5}]
[null,"Logan Lake Eco-Depot (TNRD)","Recycling Center",{"$f":"VLOOKUP(C188,$J$7:$K$14,2,FALSE)","v":1}]
[null,"Louis Creek Eco-Depot (TNRD)","Recycling Center",{"$f":"VLOOKUP(C189,$J$7:$K$14,2,FALSE)","v":1}]
[null,"Lower Nicola Eco-Depot (TNRD)","Recycling Center",{"$f":"VLOOKUP(C190,$J$7:$K$14,2,FALSE)","v":1}]
[null,"Lytton Eco-Depot (TNRD)","Recycling Center",{"$f":"VLOOKUP(C191,$J$7:$K$14,2,FALSE)","v":1}]
[null,"MacCarthy Motors Ltd","Auto Repair/Car Dealer",{"$f":"VLOOKUP(C192,$J$7:$K$14,2,FALSE)","v":0.5}]
[null,"Mackenzie Regional Landfill (FFGRD)","Landfill/Transfer Station",{"$f":"VLOOKUP(C193,$J$7:$K$14,2,FALSE)","v":1}]
[null,"McBride Regional Transfer Station (FFGRD)","Landfill/Transfer Station",{"$f":"VLOOKUP(C194,$J$7:$K$14,2,FALSE)","v":1}]
[null,"Meade Creek Recycling Centre (CWRD)","Recycling Center",{"$f":"VLOOKUP(C195,$J$7:$K$14,2,FALSE)","v":1}]
[null,"Mertin Pontiac Buick","Auto Repair/Car Dealer",{"$f":"VLOOKUP(C196,$J$7:$K$14,2,FALSE)","v":0.5}]
[null,"Method Marine Supply Co. Ltd","Retailer",{"$f":"VLOOKUP(C197,$J$7:$K$14,2,FALSE)","v":0.75}]
[null,"Midas Auto Service (Chilliwack)","Auto Repair/Car Dealer",{"$f":"VLOOKUP(C198,$J$7:$K$14,2,FALSE)","v":0.5}]
[null,"Mission Recycling Depot","Recycling Center",{"$f":"VLOOKUP(C199,$J$7:$K$14,2,FALSE)","v":1}]
[null,"Mobil 1 Lube Express (Hope)","Lube Shop",{"$f":"VLOOKUP(C200,$J$7:$K$14,2,FALSE)","v":0.2}]
[null,"Mr. Lube #141 (Burnaby - Hastings)","Lube Shop",{"$f":"VLOOKUP(C201,$J$7:$K$14,2,FALSE)","v":0.2}]
[null,"Mr. Lube #147 (Kamloops - Summit Lubricants)","Lube Shop",{"$f":"VLOOKUP(C202,$J$7:$K$14,2,FALSE)","v":0.2}]
[null,"Mr. Lube #159 (Coquitlam)","Lube Shop",{"$f":"VLOOKUP(C203,$J$7:$K$14,2,FALSE)","v":0.2}]
[null,"Mr. Lube #177 (Courtenay/Comox)","Lube Shop",{"$f":"VLOOKUP(C204,$J$7:$K$14,2,FALSE)","v":0.2}]
[null,"Mr. Lube #201 (Kingsway)","Lube Shop",{"$f":"VLOOKUP(C205,$J$7:$K$14,2,FALSE)","v":0.2}]
[null,"Mr. Lube #236 (West Kelowna)","Lube Shop",{"$f":"VLOOKUP(C206,$J$7:$K$14,2,FALSE)","v":0.2}]
[null,"Mr. Lube #6 (Victoria - Douglas St)","Lube Shop",{"$f":"VLOOKUP(C207,$J$7:$K$14,2,FALSE)","v":0.2}]
[null,"Mr. Lube #8 (Kamloops - Briar Ave)","Lube Shop",{"$f":"VLOOKUP(C208,$J$7:$K$14,2,FALSE)","v":0.2}]
[null,"Mr. Lube #93 (Nanaimo)","Lube Shop",{"$f":"VLOOKUP(C209,$J$7:$K$14,2,FALSE)","v":0.2}]
[null,"Mr. Quick Lube & Oil (Prince George - George Street)","Lube Shop",{"$f":"VLOOKUP(C210,$J$7:$K$14,2,FALSE)","v":0.2}]
[null,"Mr. Quick Lube & Oil (Prince George - Hart Hwy)","Lube Shop",{"$f":"VLOOKUP(C211,$J$7:$K$14,2,FALSE)","v":0.2}]
[null,"MTB Auto Service","Auto Repair/Car Dealer",{"$f":"VLOOKUP(C212,$J$7:$K$14,2,FALSE)","v":0.5}]
[null,"NAPA Auto Parts (Nakusp)","Retailer",{"$f":"VLOOKUP(C213,$J$7:$K$14,2,FALSE)","v":0.75}]
[null,"NAPA Auto Parts (Pemberton)","Retailer",{"$f":"VLOOKUP(C214,$J$7:$K$14,2,FALSE)","v":0.75}]
[null,"NAPA Auto Parts (Port Hardy)","Retailer",{"$f":"VLOOKUP(C215,$J$7:$K$14,2,FALSE)","v":0.75}]
[null,"Nazko Landfill (CBRD)","Recycling Center",{"$f":"VLOOKUP(C216,$J$7:$K$14,2,FALSE)","v":1}]
[null,"Nelson Leafs Recycling Center","Recycling Center",{"$f":"VLOOKUP(C217,$J$7:$K$14,2,FALSE)","v":1}]
[null,"Norris Oil Sales Ltd.","Bulk Dealer",{"$f":"VLOOKUP(C218,$J$7:$K$14,2,FALSE)","v":1}]
[null,"North Island Lube Ltd.","Lube Shop",{"$f":"VLOOKUP(C219,$J$7:$K$14,2,FALSE)","v":0.2}]
[null,"North Shore Recycling and Waste Centre","Recycling Center",{"$f":"VLOOKUP(C220,$J$7:$K$14,2,FALSE)","v":1}]
[null,"O'Connor Chrysler","Auto Repair/Car Dealer",{"$f":"VLOOKUP(C221,$J$7:$K$14,2,FALSE)","v":0.5}]
[null,"OK Tire & Auto Service (Terrace)","Auto Repair/Car Dealer",{"$f":"VLOOKUP(C222,$J$7:$K$14,2,FALSE)","v":0.5}]
[null,"OK Tire (Prince George)","Auto Repair/Car Dealer",{"$f":"VLOOKUP(C223,$J$7:$K$14,2,FALSE)","v":0.5}]
[null,"OK Tire (Trail)","Auto Repair/Car Dealer",{"$f":"VLOOKUP(C224,$J$7:$K$14,2,FALSE)","v":0.5}]
[null,"OK Tire Store (Chilliwack) Ltd.","Auto Repair/Car Dealer",{"$f":"VLOOKUP(C225,$J$7:$K$14,2,FALSE)","v":0.5}]
[null,"Oliver Landfill (RDOS)","Landfill/Transfer Station",{"$f":"VLOOKUP(C226,$J$7:$K$14,2,FALSE)","v":1}]
[null,"P & H Supplies Ltd.","Retailer",{"$f":"VLOOKUP(C227,$J$7:$K$14,2,FALSE)","v":0.75}]
[null,"Pacific Chevrolet","Auto Repair/Car Dealer",{"$f":"VLOOKUP(C228,$J$7:$K$14,2,FALSE)","v":0.5}]
[null,"Parksville Bottle and Recycling Depot","Recycling Center",{"$f":"VLOOKUP(C229,$J$7:$K$14,2,FALSE)","v":1}]
[null,"Parksville Petro-Canada (2016)","Retailer",{"$f":"VLOOKUP(C230,$J$7:$K$14,2,FALSE)","v":0.75}]
[null,"Peace Country Petroleum Sales Ltd. (Dawson Creek)","Bulk Dealer",{"$f":"VLOOKUP(C231,$J$7:$K$14,2,FALSE)","v":1}]
[null,"Peerless Road Recycling Centre","Recycling Center",{"$f":"VLOOKUP(C232,$J$7:$K$14,2,FALSE)","v":1}]
[null,"Pender Harbour Diesel Co.","Bulk Dealer",{"$f":"VLOOKUP(C233,$J$7:$K$14,2,FALSE)","v":1}]
[null,"Pender Island Recycling Depot","Recycling Center",{"$f":"VLOOKUP(C234,$J$7:$K$14,2,FALSE)","v":1}]
[null,"Petro-Canada (Prince Rupert - Marina)","Bulk Dealer",{"$f":"VLOOKUP(C235,$J$7:$K$14,2,FALSE)","v":1}]
[null,"Petro-Canada (Smithers)","Bulk Dealer",{"$f":"VLOOKUP(C236,$J$7:$K$14,2,FALSE)","v":1}]
[null,"Petro-Canada (Stewart)","Retailer",{"$f":"VLOOKUP(C237,$J$7:$K$14,2,FALSE)","v":0.75}]
[null,"Petro-Canada (Terrace)","Bulk Dealer",{"$f":"VLOOKUP(C238,$J$7:$K$14,2,FALSE)","v":1}]
[null,"PG Recycling & Return-It Center","Recycling Center",{"$f":"VLOOKUP(C239,$J$7:$K$14,2,FALSE)","v":1}]
[null,"Polar Park Auto (Napa 8740)","Retailer",{"$f":"VLOOKUP(C240,$J$7:$K$14,2,FALSE)","v":0.75}]
[null,"Port Alberni Marine Fuels and Services","Retailer",{"$f":"VLOOKUP(C241,$J$7:$K$14,2,FALSE)","v":0.75}]
[null,"Port Alberni Port Authority","Recycling Center",{"$f":"VLOOKUP(C242,$J$7:$K$14,2,FALSE)","v":1}]
[null,"Port Hardy Harbour Authority","Recycling Center",{"$f":"VLOOKUP(C243,$J$7:$K$14,2,FALSE)","v":1}]
[null,"Prince George Truck & Equipment","Auto Repair/Car Dealer",{"$f":"VLOOKUP(C244,$J$7:$K$14,2,FALSE)","v":0.5}]
[null,"Princeton Landfill","Landfill/Transfer Station",{"$f":"VLOOKUP(C245,$J$7:$K$14,2,FALSE)","v":1}]
[null,"Puntzi Lake Landfill (CBRD)","Landfill/Transfer Station",{"$f":"VLOOKUP(C246,$J$7:$K$14,2,FALSE)","v":1}]
[null,"Quality Brake & Muffler 2005 Ltd.","Auto Repair/Car Dealer",{"$f":"VLOOKUP(C247,$J$7:$K$14,2,FALSE)","v":0.5}]
[null,"Quinn Street Regional Recycle Depot (FFGRD)","Recycling Center",{"$f":"VLOOKUP(C248,$J$7:$K$14,2,FALSE)","v":1}]
[null,"Race Rocks Automotive","Auto Repair/Car Dealer",{"$f":"VLOOKUP(C249,$J$7:$K$14,2,FALSE)","v":0.5}]
[null,"Rainbow Chrysler Dodge Jeep Ltd.","Auto Repair/Car Dealer",{"$f":"VLOOKUP(C250,$J$7:$K$14,2,FALSE)","v":0.5}]
[null,"Revelstoke Refuse Disposal Facility (CSRD)","Landfill/Transfer Station",{"$f":"VLOOKUP(C251,$J$7:$K$14,2,FALSE)","v":1}]
[null,"Rice Toyota Courtenay","Auto Repair/Car Dealer",{"$f":"VLOOKUP(C252,$J$7:$K$14,2,FALSE)","v":0.5}]
[null,"Richmond Recycling Depot","Recycling Center",{"$f":"VLOOKUP(C253,$J$7:$K$14,2,FALSE)","v":1}]
[null,"Ridge Meadows Recycling Society","Recycling Center",{"$f":"VLOOKUP(C254,$J$7:$K$14,2,FALSE)","v":1}]
[null,"Riverside Recycling","Recycling Center",{"$f":"VLOOKUP(C255,$J$7:$K$14,2,FALSE)","v":1}]
[null,"Riverside Repairs","Auto Repair/Car Dealer",{"$f":"VLOOKUP(C256,$J$7:$K$14,2,FALSE)","v":0.5}]
[null,"Rod's Repair Shop","Auto Repair/Car Dealer",{"$f":"VLOOKUP(C257,$J$7:$K$14,2,FALSE)","v":0.5}]
[null,"S M D Automotive Ltd.","Auto Repair/Car Dealer",{"$f":"VLOOKUP(C258,$J$7:$K$14,2,FALSE)","v":0.5}]
[null,"Salmon Arm Landfill (CSRD)","Landfill/Transfer Station",{"$f":"VLOOKUP(C259,$J$7:$K$14,2,FALSE)","v":1}]
[null,"Salt Spring Auto Parts","Retailer",{"$f":"VLOOKUP(C260,$J$7:$K$14,2,FALSE)","v":0.75}]
[null,"Savona Eco-Depot (TNRD)","Recycling Center",{"$f":"VLOOKUP(C261,$J$7:$K$14,2,FALSE)","v":1}]
[null,"Sayward Public Works (CXRD)","Recycling Center",{"$f":"VLOOKUP(C262,$J$7:$K$14,2,FALSE)","v":1}]
[null,"Seeco Automotive","Auto Repair/Car Dealer",{"$f":"VLOOKUP(C263,$J$7:$K$14,2,FALSE)","v":0.5}]
[null,"Semiahmoo Bottle Depot","Recycling Center",{"$f":"VLOOKUP(C264,$J$7:$K$14,2,FALSE)","v":1}]
[null,"Sherwood's Auto Parts","Retailer",{"$f":"VLOOKUP(C265,$J$7:$K$14,2,FALSE)","v":0.75}]
[null,"Shortstop Auto Service / Big O Tire","Auto Repair/Car Dealer",{"$f":"VLOOKUP(C266,$J$7:$K$14,2,FALSE)","v":0.5}]
[null,"Smith Fuel Services Ltd.","Bulk Dealer",{"$f":"VLOOKUP(C267,$J$7:$K$14,2,FALSE)","v":1}]
[null,"South Thompson Eco-Depot (TNRD)","Recycling Center",{"$f":"VLOOKUP(C268,$J$7:$K$14,2,FALSE)","v":1}]
[null,"South Van Bottle Depot","Recycling Center",{"$f":"VLOOKUP(C269,$J$7:$K$14,2,FALSE)","v":1}]
[null,"Spences Bridge Eco-Depot (TNRD)","Recycling Center",{"$f":"VLOOKUP(C270,$J$7:$K$14,2,FALSE)","v":1}]
[null,"Sullivan Motor Products","Retailer",{"$f":"VLOOKUP(C271,$J$7:$K$14,2,FALSE)","v":0.75}]
[null,"Sunshine Disposal and Recycling","Recycling Center",{"$f":"VLOOKUP(C272,$J$7:$K$14,2,FALSE)","v":1}]
[null,"Surfside Automotive","Auto Repair/Car Dealer",{"$f":"VLOOKUP(C273,$J$7:$K$14,2,FALSE)","v":0.5}]
[null,"T2 Market Recycling","Recycling Center",{"$f":"VLOOKUP(C274,$J$7:$K$14,2,FALSE)","v":1}]
[null,"Tahltan Band","Landfill/Transfer Station",{"$f":"VLOOKUP(C275,$J$7:$K$14,2,FALSE)","v":1}]
[null,"Tahsis Waste Management Center (CXRD)","Recycling Center",{"$f":"VLOOKUP(C276,$J$7:$K$14,2,FALSE)","v":1}]
[null,"Takla Nation Eco-Depot","Recycling Center",{"$f":"VLOOKUP(C277,$J$7:$K$14,2,FALSE)","v":1}]
[null,"Tatla Lake Landfill (CBRD)","Landfill/Transfer Station",{"$f":"VLOOKUP(C278,$J$7:$K$14,2,FALSE)","v":1}]
[null,"Terrace Motors Ltd","Auto Repair/Car Dealer",{"$f":"VLOOKUP(C279,$J$7:$K$14,2,FALSE)","v":0.5}]
[null,"Thorsen Creek Recycling Center (CCRD)","Recycling Center",{"$f":"VLOOKUP(C280,$J$7:$K$14,2,FALSE)","v":1}]
[null,"TLC Automotive Services Ltd.","Auto Repair/Car Dealer",{"$f":"VLOOKUP(C281,$J$7:$K$14,2,FALSE)","v":0.5}]
[null,"Tofino Harbour Authority","Auto Repair/Car Dealer",{"$f":"VLOOKUP(C282,$J$7:$K$14,2,FALSE)","v":0.5}]
[null,"Town of Osoyoos Sanitary Landfill","Landfill/Transfer Station",{"$f":"VLOOKUP(C283,$J$7:$K$14,2,FALSE)","v":1}]
[null,"Triton Automotive and Industrial Ltd (NAPA)","Retailer",{"$f":"VLOOKUP(C284,$J$7:$K$14,2,FALSE)","v":0.75}]
[null,"Tsehum Harbour Authority - Tenants Only","Recycling Center",{"$f":"VLOOKUP(C285,$J$7:$K$14,2,FALSE)","v":1}]
[null,"United Boulevard Recycling and Waste Centre","Recycling Center",{"$f":"VLOOKUP(C286,$J$7:$K$14,2,FALSE)","v":1}]
[null,"Valemount Regional Transfer Station (FFGRD)","Landfill/Transfer Station",{"$f":"VLOOKUP(C287,$J$7:$K$14,2,FALSE)","v":1}]
[null,"Vancouver Landfill (MVRD)","Landfill/Transfer Station",{"$f":"VLOOKUP(C288,$J$7:$K$14,2,FALSE)","v":1}]
[null,"Vanway Regional Transfer Station (FFGRD)","Landfill/Transfer Station",{"$f":"VLOOKUP(C289,$J$7:$K$14,2,FALSE)","v":1}]
[null,"V-Echo Restorations","Auto Repair/Car Dealer",{"$f":"VLOOKUP(C290,$J$7:$K$14,2,FALSE)","v":0.5}]
[null,"Village of Alert Bay Transfer Station","Landfill/Transfer Station",{"$f":"VLOOKUP(C291,$J$7:$K$14,2,FALSE)","v":1}]
[null,"Village of Port Alice Recycling Facility","Recycling Center",{"$f":"VLOOKUP(C292,$J$7:$K$14,2,FALSE)","v":1}]
[null,"Walker's Repair Centre Ltd.","Auto Repair/Car Dealer",{"$f":"VLOOKUP(C293,$J$7:$K$14,2,FALSE)","v":0.5}]
[null,"West Chilcotin Landfill (CBRD)","Recycling Center",{"$f":"VLOOKUP(C294,$J$7:$K$14,2,FALSE)","v":1}]
[null,"Westwold Eco-Depot (TNRD)","Recycling Center",{"$f":"VLOOKUP(C295,$J$7:$K$14,2,FALSE)","v":1}]
[null,"Wide Sky Disposal","Multi-material Depot",{"$f":"VLOOKUP(C296,$J$7:$K$14,2,FALSE)","v":1}]
[null,"Williamson Automotive","Auto Repair/Car Dealer",{"$f":"VLOOKUP(C297,$J$7:$K$14,2,FALSE)","v":0.5}]
[null,"Wolverine Auto Parts & Service","Auto Repair/Car Dealer",{"$f":"VLOOKUP(C298,$J$7:$K$14,2,FALSE)","v":0.5}]
[null,"Woz Mechanical Ltd.","Auto Repair/Car Dealer",{"$f":"VLOOKUP(C299,$J$7:$K$14,2,FALSE)","v":0.5}]